bitfinex-derivatives/quotes_BTCF0:USTF0_20250121
["timestamp","ask_amount","ask_price","bid_price","bid_amount"]
[1737422311662,0.3608,101740.0,101730.0,0.02468367]
[1737422312347,0.400172,101740.0,101730.0,0.02468367]
[1737422314657,0.3608,101740.0,101730.0,0.02468367]
[1737422315349,0.400172,101740.0,101730.0,0.02468367]
[1737422315852,0.039379,101730.0,101700.0,0.01662277]
[1737422316051,0.03938,101720.0,101700.0,0.01662277]
[1737422316256,0.40018,101720.0,101700.0,0.01662277]
[1737422316755,0.039384,101710.0,101700.0,0.01662277]
[1737422317063,0.03945584,101710.0,101700.0,0.01662277]
[1737422317651,7.184e-05,101710.0,101700.0,0.01662277]
[1737422317851,0.00766184,101710.0,101700.0,0.05601077]
[1737422318059,0.01552184,101710.0,101700.0,0.05601077]
[1737422318961,0.01552184,101710.0,101700.0,0.51513435]
[1737422319262,0.3608,101720.0,101710.0,0.039384]
[1737422319461,0.02457,101720.0,101710.0,0.400184]
[1737422319960,0.63904962,101750.0,101710.0,0.400184]
[1737422319961,0.18258636,101750.0,101740.0,0.039372]
[1737422320164,0.18258636,101750.0,101740.0,0.400172]
[1737422320456,0.00786,101750.0,101740.0,0.38043652]
[1737422320653,0.00147461,101770.0,101760.0,0.039364]
[1737422321357,1.0866991,101790.0,101760.0,0.039364]
[1737422321358,0.6865461,101790.0,101780.0,0.039357]
[1737422321556,0.2567461,101790.0,101780.0,0.039357]
[1737422321857,0.44594353,101790.0,101780.0,0.039357]
[1737422324455,0.80674353,101790.0,101770.0,0.039359]
[1737422324661,0.84609853,101790.0,101760.0,0.039363]
[1737422324862,1.05309853,101790.0,101760.0,0.039363]
[1737422325155,0.49459951,101780.0,101750.0,0.0408421]
[1737422325360,0.400161,101770.0,101750.0,0.0408421]
[1737422325768,0.3608,101760.0,101750.0,0.0408421]
[1737422325950,0.400164,101760.0,101750.0,0.0014741]
[1737422326351,2.03396351,101760.0,101750.0,0.0014741]
[1737422327452,0.53396351,101760.0,101750.0,0.0014741]
[1737422327650,0.53396351,101760.0,101740.0,0.29288678]
[1737422328069,0.400168,101750.0,101740.0,0.29288678]
[1737422328362,0.400168,101750.0,101730.0,0.34760386]
[1737422328363,0.039372,101740.0,101730.0,0.34760386]
[1737422328554,0.400172,101740.0,101730.0,0.34760386]
[1737422328754,0.609372,101740.0,101730.0,0.34760386]
[1737422329254,0.609372,101740.0,101730.0,9.811e-05]
[1737422333157,0.6094518,101740.0,101710.0,0.3421076]
[1737422333373,0.3608,101730.0,101720.0,0.039378]
[1737422334062,0.400176,101730.0,101710.0,0.04900755]
[1737422335163,0.400176,101730.0,101710.0,0.00962455]
[1737422335359,0.408036,101730.0,101700.0,0.05600977]
[1737422335564,0.03945178,101720.0,101700.0,0.05600977]
[1737422335962,0.03945178,101720.0,101700.0,0.23159471]
[1737422336165,0.039384,101710.0,101700.0,0.19220771]
[1737422336867,0.039384,101710.0,101700.0,0.20208872]
[1737422337167,0.400184,101710.0,101700.0,0.19220771]
[1737422337670,0.40025421,101710.0,101700.0,0.19073306]
[1737422338167,0.40025421,101710.0,101700.0,0.12273305]
[1737422338872,0.40025421,101710.0,101700.0,0.1473559]
[1737422340671,0.400184,101710.0,101700.0,0.1473559]
[1737422340968,0.400184,101710.0,101700.0,0.02462285]
[1737422341167,0.039391,101690.0,101680.0,0.00011103]
[1737422341469,0.76108911,101690.0,101680.0,0.00011103]
[1737422341670,0.83722719,101690.0,101680.0,0.00011103]
[1737422341863,0.039395,101680.0,101670.0,0.00147538]
[1737422342070,0.400195,101680.0,101670.0,0.00147538]
[1737422342566,0.36089811,101690.0,101670.0,0.07761346]
[1737422342774,9.811e-05,101690.0,101680.0,0.11553308]
[1737422342972,9.811e-05,101690.0,101680.0,0.039395]
[1737422343179,9.811e-05,101690.0,101680.0,0.47633308]
[1737422343469,9.811e-05,101690.0,101680.0,0.69283308]
[1737422343776,0.36227545,101710.0,101700.0,0.039388]
[1737422344166,0.36227545,101710.0,101690.0,0.039391]
[1737422344371,0.40166045,101710.0,101690.0,0.039391]
[1737422344768,7.357e-05,101700.0,101690.0,0.039391]
[1737422344969,7.357e-05,101700.0,101690.0,0.11552908]
[1737422345173,7.357e-05,101700.0,101690.0,0.21385749]
[1737422345477,7.357e-05,101700.0,101690.0,0.78855749]
[1737422345773,7.357e-05,101700.0,101690.0,0.253291]
[1737422346068,7.357e-05,101700.0,101690.0,0.84643307]
[1737422346272,7.357e-05,101700.0,101690.0,1.14643307]
[1737422346472,0.37843048,101730.0,101690.0,1.14643307]
[1737422346668,0.01763048,101730.0,101720.0,0.03938]
[1737422346868,0.00786,101730.0,101720.0,0.03938]
[1737422347380,0.3204498,101740.0,101720.0,0.72218425]
[1737422347677,0.3204498,101740.0,101730.0,0.53418966]
[1737422347872,0.3204498,101740.0,101730.0,0.75548966]
[1737422348268,0.3204498,101740.0,101730.0,0.85378424]
[1737422348578,0.3283098,101740.0,101730.0,0.85378424]
[1737422349169,0.3283098,101740.0,101730.0,0.260676]
[1737422349471,0.00786,101740.0,101730.0,0.260676]
[1737422349872,0.00786,101740.0,101730.0,0.85378424]
[1737422350376,0.00147451,101770.0,101750.0,0.039366]
[1737422350681,0.00147451,101770.0,101760.0,0.039364]
[1737422350869,0.3204498,101790.0,101780.0,0.039357]
[1737422351065,0.3282998,101790.0,101780.0,0.039357]
[1737422351266,0.3282998,101790.0,101780.0,0.400157]
[1737422351570,0.32341531,101790.0,101780.0,0.49842261]
[1737422351871,0.20444873,101810.0,101800.0,0.039349]
[1737422353079,0.00785,101810.0,101800.0,0.039349]
[1737422355274,0.00785,101810.0,101780.0,0.3608]
[1737422355275,0.407997,101810.0,101780.0,0.039355]
[1737422355578,0.3608,101790.0,101780.0,0.039355]
[1737422355777,0.3608,101790.0,101780.0,0.04902406]
[1737422355976,0.00785,101810.0,101790.0,0.039353]
[1737422356182,0.00785,101810.0,101790.0,0.17336666]
[1737422356372,0.00785,101810.0,101790.0,0.039353]
[1737422356883,0.00785,101810.0,101800.0,0.039349]
[1737422357676,0.00785,101810.0,101800.0,0.49838082]
[1737422357868,0.3608,101830.0,101820.0,0.039341]
[1737422358078,0.11616733,101840.0,101830.0,0.039337]
[1737422358271,0.11616733,101840.0,101830.0,0.17335066]
[1737422358771,0.11616733,101840.0,101830.0,0.039337]
[1737422359170,0.12089733,101840.0,101830.0,0.039337]
[1737422360284,0.52103133,101840.0,101810.0,0.250142]
[1737422360475,0.48169733,101840.0,101810.0,0.34481366]
[1737422360779,0.12089733,101840.0,101830.0,0.17335066]
[1737422360980,0.00473,101840.0,101830.0,0.17335066]
[1737422361185,0.00473,101840.0,101830.0,0.039337]
[1737422361376,0.00473,101840.0,101830.0,0.400137]
[1737422362078,0.00473,101840.0,101830.0,0.53415066]
[1737422362282,0.58892446,101870.0,101830.0,0.63234872]
[1737422362478,0.3622734,101870.0,101860.0,0.039326]
[1737422362678,0.7230734,101870.0,101850.0,0.17334266]
[1737422362880,0.3608,101860.0,101850.0,0.17334266]
[1737422363074,0.3608,101860.0,101850.0,0.039329]
[1737422363882,0.4015954,101870.0,101850.0,0.039329]
[1737422364083,0.3622734,101870.0,101850.0,0.039329]
[1737422364278,0.0014734,101870.0,101850.0,0.039329]
[1737422364481,0.3622734,101870.0,101850.0,0.039329]
[1737422364987,0.0014734,101870.0,101860.0,0.039326]
[1737422365984,0.1,101900.0,101870.0,0.039322]
[1737422366184,0.1,101900.0,101890.0,0.53412766]
[1737422366689,0.10785,101900.0,101890.0,0.8436968]
[1737422367491,0.11616733,101920.0,101890.0,0.8436968]
[1737422367692,0.11616733,101920.0,101910.0,0.17332066]
[1737422368292,0.11616733,101920.0,101910.0,0.27144164]
[1737422368790,0.5842,101940.0,101910.0,0.23213464]
[1737422368994,0.5842,101940.0,101920.0,0.039302]
[1737422370991,0.3608,101930.0,101910.0,0.17331966]
[1737422371187,0.3608,101930.0,101910.0,0.05131918]
[1737422371691,0.3608,101920.0,101900.0,0.039309]
[1737422371887,0.4001,101930.0,101900.0,0.039309]
[1737422372088,0.3608,101930.0,101910.0,0.039304]
[1737422372295,0.3608,101930.0,101910.0,0.17331766]
[1737422372792,1.8608,101930.0,101910.0,0.17331766]
[1737422373598,1.8608,101930.0,101910.0,0.13401366]
[1737422373894,0.5842,101940.0,101930.0,0.039299]
[1737422374191,0.5842,101940.0,101930.0,0.11500047]
[1737422374391,0.59204,101940.0,101930.0,0.11500047]
[1737422374988,0.631335,101940.0,101920.0,0.039302]
[1737422375193,0.59204,101940.0,101920.0,0.039302]
[1737422375788,0.3608,101930.0,101910.0,0.07570147]
[1737422375986,0.631336,101940.0,101910.0,0.11500647]
[1737422376185,0.631336,101940.0,101920.0,0.039302]
[1737422376689,0.59204,101940.0,101920.0,0.11500347]
[1737422376994,0.3608,101930.0,101920.0,0.039302]
[1737422377194,2.131336,101940.0,101920.0,0.039302]
[1737422377594,0.631336,101940.0,101920.0,0.039302]
[1737422377794,0.3608,101930.0,101920.0,0.039302]
[1737422378295,0.59204,101940.0,101930.0,0.039299]
[1737422379006,0.59204,101940.0,101910.0,0.11500447]
[1737422379007,0.631336,101940.0,101910.0,0.11500447]
[1737422379187,0.3608,101930.0,101910.0,0.07570147]
[1737422379391,0.631336,101940.0,101920.0,0.039303]
[1737422379693,0.3608,101930.0,101920.0,0.11500447]
[1737422379994,0.3608,101930.0,101920.0,0.039303]
[1737422380793,0.59204,101940.0,101920.0,0.11500447]
[1737422380989,0.36864,101940.0,101930.0,0.11500047]
[1737422381188,0.00784,101940.0,101930.0,0.11500047]
[1737422381594,0.00784,101940.0,101930.0,0.21310701]
[1737422382195,0.36864,101940.0,101900.0,0.01195922]
[1737422382397,0.3608,101920.0,101910.0,0.039306]
[1737422383095,0.3608,101920.0,101910.0,0.11500747]
[1737422383297,0.3608,101930.0,101910.0,0.11500747]
[1737422383492,0.4001,101930.0,101910.0,0.039306]
[1737422383696,0.3608,101920.0,101910.0,0.039306]
[1737422384288,0.839336,101940.0,101920.0,0.039302]
[1737422384994,0.400099,101930.0,101910.0,0.039305]
[1737422385189,0.3608,101920.0,101910.0,0.039305]
[1737422385388,0.400099,101930.0,101910.0,0.039305]
[1737422386012,0.3608,101930.0,101910.0,0.11504685]
[1737422386193,0.3608,101930.0,101920.0,0.039303]
[1737422386602,0.80004,101940.0,101920.0,0.11502811]
[1737422386800,0.00784,101940.0,101930.0,0.07572511]
[1737422387097,0.00784,101940.0,101930.0,0.11502411]
[1737422387304,0.03236,101940.0,101930.0,0.11502411]
[1737422389997,0.03236,101940.0,101930.0,0.57392584]
[1737422390700,0.575,101960.0,101950.0,0.039291]
[1737422390701,0.3608,101960.0,101950.0,0.039291]
[1737422390902,0.3608,101960.0,101950.0,0.11501611]
[1737422391997,0.67996733,101970.0,101960.0,0.039287]
[1737422393306,0.71925133,101970.0,101950.0,0.039291]
[1737422393608,0.3608,101960.0,101950.0,0.039291]
[1737422394706,0.3608,101960.0,101950.0,0.11501611]
[1737422395906,0.3608,101960.0,101950.0,0.039291]
[1737422396209,0.67996733,101970.0,101950.0,0.039291]
[1737422396411,0.67996733,101970.0,101950.0,0.11501611]
[1737422396706,0.67996733,101970.0,101950.0,0.039291]
[1737422396904,0.71925133,101970.0,101940.0,0.039294]
[1737422397107,0.400088,101960.0,101940.0,0.039294]
[1737422397803,0.67996733,101970.0,101950.0,0.11501611]
[1737422398011,0.400088,101960.0,101940.0,0.15246641]
[1737422398198,0.3608,101950.0,101940.0,0.05438874]
[1737422398507,0.3608,101950.0,101940.0,0.13011385]
[1737422399305,0.3608,101950.0,101940.0,0.05438874]
[1737422399509,0.47696733,101950.0,101940.0,0.13011385]
[1737422400402,0.47696733,101950.0,101930.0,0.5857]
[1737422400403,0.47696733,101950.0,101920.0,0.23547747]
[1737422400706,0.7216,101930.0,101920.0,0.32497742]
[1737422400905,0.760899,101930.0,101920.0,0.23547747]
[1737422401208,0.7216,101930.0,101920.0,0.23547747]
[1737422401906,0.760899,101930.0,101920.0,0.23547747]
[1737422402304,0.039303,101920.0,101910.0,0.63844505]
[1737422402505,0.47582811,101920.0,101910.0,0.30024505]
[1737422402704,1.900103,101920.0,101910.0,0.30024505]
[1737422403111,1.900103,101920.0,101910.0,0.23224504]
[1737422403710,0.039307,101910.0,101900.0,0.22403711]
[1737422403904,0.11503911,101890.0,101880.0,0.26158974]
[1737422404104,0.039318,101880.0,101870.0,0.63980115]
[1737422404410,0.400118,101880.0,101870.0,0.63980115]
[1737422404614,0.400118,101880.0,101860.0,0.82946994]
[1737422404615,0.039322,101870.0,101860.0,0.82946994]
[1737422404907,0.47584711,101870.0,101860.0,0.82946994]
[1737422405108,0.400122,101870.0,101860.0,0.82946994]
[1737422405812,0.47584711,101870.0,101860.0,0.82946994]
[1737422406018,0.400122,101870.0,101860.0,0.82946994]
[1737422407604,0.47584711,101870.0,101860.0,0.82946994]
[1737422408115,0.47584711,101870.0,101860.0,0.76146993]
[1737422409116,0.43665166,101870.0,101850.0,0.039849]
[1737422409309,0.400126,101860.0,101850.0,0.039329]
[1737422411115,0.407976,101860.0,101850.0,0.039329]
[1737422414027,0.407976,101860.0,101850.0,0.05500364]
[1737422415821,0.00785,101860.0,101850.0,0.13072875]
[1737422416009,0.00785,101860.0,101850.0,0.34332875]
[1737422416320,0.00785,101860.0,101850.0,0.26760364]
[1737422416521,0.00785,101860.0,101850.0,0.27805378]
[1737422416716,0.36865,101860.0,101850.0,0.20232867]
[1737422416921,0.407976,101860.0,101850.0,0.20232867]
[1737422417314,0.03933,101850.0,101840.0,0.00147263]
[1737422417626,0.039337,101840.0,101820.0,0.2315555]
[1737422417925,0.400137,101840.0,101820.0,0.33126611]
[1737422418624,0.3608,101840.0,101830.0,0.11506111]
[1737422419918,0.3608,101840.0,101830.0,0.255836]
[1737422421622,0.400134,101840.0,101830.0,0.2165]
[1737422421826,0.039337,101830.0,101820.0,0.2162]
[1737422422020,0.400137,101830.0,101820.0,0.2162]
[1737422422923,0.47597918,101830.0,101810.0,0.2235]
[1737422423120,0.039345,101810.0,101800.0,0.1015846]
[1737422423423,0.47599503,101810.0,101800.0,0.10011147]
[1737422423614,0.40026992,101810.0,101800.0,0.10011147]
[1737422424422,0.36092492,101810.0,101800.0,0.10011147]
[1737422424816,0.36092492,101810.0,101800.0,0.17583658]
[1737422425015,0.03946992,101810.0,101800.0,0.10011147]
[1737422425216,0.40026992,101810.0,101800.0,0.10011147]
[1737422425522,0.03946992,101810.0,101800.0,0.10011147]
[1737422426327,0.40026992,101810.0,101800.0,0.10011147]
[1737422427419,0.00012492,101810.0,101800.0,0.13946047]
[1737422427815,0.00012492,101810.0,101800.0,0.10011147]
[1737422428018,0.03946992,101810.0,101800.0,0.10011147]
[1737422428222,0.00012492,101810.0,101800.0,0.13946047]
[1737422428817,0.00012492,101810.0,101800.0,0.21539057]
[1737422429028,0.40026992,101810.0,101800.0,0.10011147]
[1737422429521,0.00012492,101810.0,101800.0,0.13946047]
[1737422429923,0.36092492,101810.0,101800.0,0.13946047]
[1737422430128,0.17388794,101830.0,101800.0,1.01099867]
[1737422430327,0.047177,101860.0,101840.0,0.039332]
[1737422430516,0.047176,101860.0,101850.0,0.07582066]
[1737422430717,0.407976,101860.0,101840.0,0.11515266]
[1737422431024,0.047176,101860.0,101840.0,0.137559]
[1737422431216,0.00785,101860.0,101840.0,0.57417966]
[1737422431417,0.00785,101860.0,101840.0,0.400132]
[1737422431621,0.00785,101860.0,101850.0,0.47595066]
[1737422432118,0.04079213,101880.0,101860.0,0.039324]
[1737422433024,0.04079213,101880.0,101850.0,0.400129]
[1737422433025,0.00147313,101880.0,101850.0,0.400129]
[1737422433230,0.039322,101870.0,101850.0,0.400129]
[1737422433430,0.039322,101870.0,101850.0,0.619629]
[1737422433631,0.039322,101870.0,101850.0,0.69544966]
[1737422434028,0.039322,101870.0,101850.0,0.258829]
[1737422434228,0.40159213,101880.0,101850.0,0.29532066]
[1737422434431,0.04079213,101880.0,101860.0,0.039325]
[1737422434624,0.04079213,101880.0,101860.0,0.400125]
[1737422434827,0.04079213,101880.0,101860.0,0.039325]
[1737422435026,0.36227313,101880.0,101850.0,0.5803]
[1737422435226,0.400122,101870.0,101850.0,0.463129]
[1737422435637,0.047172,101870.0,101850.0,0.823929]
[1737422435929,0.047172,101870.0,101850.0,0.604429]
[1737422436935,0.039326,101860.0,101850.0,0.5651]
[1737422437235,0.039326,101860.0,101840.0,0.039333]
[1737422437436,0.039326,101860.0,101840.0,0.0537754]
[1737422437823,0.44447066,101870.0,101840.0,0.0144424]
[1737422438134,0.03933,101850.0,101830.0,0.2159]
[1737422438327,0.03933,101850.0,101830.0,0.255237]
[1737422438527,0.039327,101860.0,101840.0,0.11515366]
[1737422438728,1.547173,101870.0,101850.0,0.11514866]
[1737422439031,0.047173,101870.0,101850.0,0.039328]
[1737422439521,0.3608,101860.0,101830.0,0.66668113]
[1737422439725,0.400126,101860.0,101840.0,0.039333]
[1737422439929,0.424666,101860.0,101840.0,0.039333]
[1737422440135,0.38534,101860.0,101830.0,0.66668113]
[1737422440325,0.02454,101860.0,101830.0,0.66668113]
[1737422440522,0.063867,101860.0,101840.0,0.07582066]
[1737422442131,0.063867,101860.0,101830.0,0.70601613]
[1737422442339,0.02454,101860.0,101850.0,0.43662066]
[1737422442536,0.60455973,101900.0,101870.0,0.03932]
[1737422442832,0.56524873,101900.0,101880.0,0.039316]
[1737422443041,0.20444873,101900.0,101890.0,0.11513466]
[1737422443239,0.20444873,101900.0,101890.0,0.47593466]
[1737422443428,0.20444873,101900.0,101890.0,0.57407971]
[1737422443631,0.20444873,101900.0,101890.0,0.45894505]
[1737422443936,0.20444873,101900.0,101890.0,0.47593466]
[1737422444139,0.20444873,101900.0,101890.0,0.57407971]
[1737422444440,0.07654435,101910.0,101900.0,0.03931]
[1737422444635,0.07654435,101910.0,101900.0,0.91293066]
[1737422445032,0.20521016,101930.0,101910.0,0.039305]
[1737422445332,0.24451216,101930.0,101900.0,0.3608]
[1737422445637,0.24451216,101930.0,101900.0,0.17395127]
[1737422446134,0.039307,101910.0,101890.0,0.3749417]
[1737422446339,0.3608,101900.0,101890.0,0.0141417]
[1737422446540,0.3608,101900.0,101880.0,0.64122066]
[1737422446933,0.3608,101900.0,101880.0,0.73934164]
[1737422447442,0.3608,101900.0,101890.0,0.07582066]
[1737422447637,1.86176001,101920.0,101890.0,0.43662066]
[1737422447943,1.539303,101920.0,101900.0,0.43662066]
[1737422448331,0.047143,101920.0,101890.0,0.57407871]
[1737422448529,0.407943,101920.0,101900.0,0.07582066]
[1737422448835,0.407943,101920.0,101890.0,0.17394645]
[1737422449027,0.407943,101920.0,101890.0,0.07582066]
[1737422449233,0.407943,101920.0,101890.0,0.17394645]
[1737422449437,0.039307,101910.0,101890.0,0.09812579]
[1737422449633,0.039311,101900.0,101880.0,0.65547336]
[1737422449942,0.400113,101900.0,101880.0,0.3750527]
[1737422450334,0.400113,101900.0,101880.0,0.45087336]
[1737422450534,0.400113,101900.0,101880.0,0.3750527]
[1737422450740,0.039314,101890.0,101880.0,0.3608]
[1737422450938,0.3608,101900.0,101870.0,0.00010615]
[1737422451134,0.400116,101890.0,101870.0,0.00010615]
[1737422451446,0.039318,101880.0,101870.0,0.00010615]
[1737422452631,0.400118,101880.0,101870.0,0.00010615]
[1737422452839,0.039318,101880.0,101870.0,0.00010615]
[1737422453140,0.87262066,101890.0,101850.0,0.21446337]
[1737422453334,0.400124,101870.0,101850.0,0.21446337]
[1737422453534,0.400124,101870.0,101850.0,0.29028403]
[1737422453836,0.039326,101860.0,101850.0,0.09360555]
[1737422454237,0.039329,101850.0,101830.0,0.89555766]
[1737422454437,0.039329,101850.0,101830.0,0.68365766]
[1737422454638,0.00011179,101860.0,101840.0,0.43662066]
[1737422454840,0.03943779,101860.0,101850.0,0.07582066]
[1737422455041,0.03943779,101860.0,101850.0,0.11514966]
[1737422455042,0.00011179,101860.0,101850.0,0.11514966]
[1737422456336,0.00011179,101860.0,101850.0,0.47594966]
[1737422456729,0.00011179,101860.0,101850.0,0.11514966]
[1737422457136,0.00011179,101860.0,101850.0,0.47594966]
[1737422457543,0.02465179,101860.0,101850.0,0.47594966]
[1737422458342,0.02465179,101860.0,101850.0,0.57412844]
[1737422458542,0.02465179,101860.0,101850.0,0.59170516]
[1737422460035,0.04078683,101890.0,101850.0,0.81320516]
[1737422460243,0.21309483,101910.0,101880.0,0.43662066]
[1737422460438,0.21309483,101910.0,101890.0,0.47593366]
[1737422460835,0.53458883,101910.0,101870.0,0.68814166]
[1737422461036,0.039312,101900.0,101870.0,0.32734166]
[1737422461235,0.039312,101900.0,101870.0,0.68814166]
[1737422461440,0.53458883,101910.0,101870.0,0.68814166]
[1737422461652,0.039311,101890.0,101870.0,0.68814166]
[1737422461841,0.039311,101890.0,101880.0,0.07582066]
[1737422462039,0.039311,101890.0,101870.0,0.68814166]
[1737422462840,0.039309,101900.0,101870.0,0.68814166]
[1737422463333,0.14583087,101910.0,101890.0,0.7216]
[1737422463540,0.18513587,101910.0,101890.0,0.400111]
[1737422463747,0.039307,101900.0,101890.0,0.3608]
[1737422464439,0.039307,101900.0,101870.0,0.90493866]
[1737422464848,0.039307,101900.0,101880.0,0.11513566]
[1737422465648,0.039307,101900.0,101880.0,0.039315]
[1737422466442,0.14583087,101910.0,101880.0,0.43662066]
[1737422466644,0.14583087,101910.0,101900.0,0.43662066]
[1737422467242,0.14583087,101910.0,101900.0,0.400107]
[1737422467751,0.14583087,101910.0,101900.0,0.57405827]
[1737422468051,0.17378883,101920.0,101910.0,0.039303]
[1737422468242,0.17378883,101920.0,101910.0,0.69932366]
[1737422468641,0.17378883,101920.0,101910.0,0.79744464]
[1737422468844,0.16996477,101930.0,101920.0,0.11511966]
[1737422469046,0.16596477,101930.0,101920.0,0.55174032]
[1737422469249,0.51796498,101950.0,101940.0,0.039292]
[1737422469441,0.51796498,101950.0,101940.0,0.47591266]
[1737422469642,0.52580498,101950.0,101940.0,0.47591266]
[1737422471040,0.52580498,101950.0,101940.0,0.400092]
[1737422471450,0.52580498,101950.0,101940.0,0.760892]
[1737422472148,0.52580498,101950.0,101940.0,0.83671266]
[1737422472359,0.52580498,101950.0,101940.0,0.760892]
[1737422472740,0.00784,101950.0,101940.0,0.83671266]
[1737422473157,0.047128,101950.0,101940.0,0.3608]
[1737422473654,0.047128,101950.0,101930.0,0.039295]
[1737422473957,0.039293,101940.0,101920.0,0.3608]
[1737422474150,0.00784,101950.0,101920.0,0.3608]
[1737422474151,0.039296,101930.0,101920.0,0.3608]
[1737422474350,0.039296,101930.0,101910.0,0.01929086]
[1737422474652,0.0393,101920.0,101910.0,0.00147162]
[1737422475049,0.039303,101910.0,101900.0,0.41033477]
[1737422475745,0.463603,101910.0,101900.0,0.41033477]
[1737422476149,0.463603,101910.0,101900.0,0.52546243]
[1737422476358,0.463603,101910.0,101890.0,0.29158842]
[1737422476551,0.463603,101910.0,101890.0,0.21516776]
[1737422477752,0.039307,101900.0,101890.0,0.17585776]
[1737422478156,0.400107,101900.0,101890.0,0.17585776]
[1737422478752,0.463604,101910.0,101890.0,0.25167842]
[1737422478965,0.584,101930.0,101900.0,0.43662066]
[1737422479159,0.0393,101920.0,101910.0,0.11512266]
[1737422479461,0.0393,101920.0,101910.0,0.039302]
[1737422479662,0.60180502,101930.0,101910.0,0.039302]
[1737422480563,0.0393,101920.0,101910.0,0.039302]
[1737422481067,0.28030102,101930.0,101920.0,0.039299]
[1737422481261,0.26296432,101940.0,101930.0,0.039296]
[1737422481572,0.00147232,101940.0,101930.0,0.47591666]
[1737422481764,0.00147232,101940.0,101930.0,0.11511666]
[1737422481966,0.06496958,101950.0,101940.0,0.039292]
[1737422483048,0.02568058,101950.0,101940.0,0.039292]
[1737422483255,0.00784,101950.0,101940.0,0.039292]
[1737422483762,0.00784,101950.0,101940.0,0.47591266]
[1737422484269,0.28252361,101970.0,101960.0,0.039284]
[1737422484270,0.00147163,101970.0,101960.0,0.039284]
[1737422484467,0.00147163,101970.0,101960.0,0.47590466]
[1737422485566,0.23269154,101980.0,101970.0,0.03928]
[1737422485766,0.27196754,101980.0,101970.0,0.3608]
[1737422487470,0.039276,101980.0,101970.0,0.3608]
[1737422488568,0.039283,101970.0,101950.0,0.400087]
[1737422488769,0.039283,101970.0,101950.0,0.039287]
[1737422488966,0.039285,101960.0,101940.0,0.04076335]
[1737422489268,0.039288,101950.0,101940.0,0.00147135]
[1737422490268,0.039288,101950.0,101940.0,0.04076335]
[1737422490668,0.039284,101960.0,101940.0,0.04076335]
[1737422490865,0.3608,101970.0,101940.0,0.49555891]
[1737422491167,0.039287,101960.0,101940.0,0.17404991]
[1737422493160,2.03698066,101980.0,101940.0,0.00147135]
[1737422493362,0.039288,101950.0,101940.0,0.00147135]
[1737422493965,0.400088,101950.0,101920.0,0.21515676]
[1737422494270,0.039292,101940.0,101920.0,0.21515676]
[1737422494463,0.039292,101940.0,101920.0,0.34844432]
[1737422494866,0.039292,101940.0,101930.0,0.039296]
[1737422495069,0.039292,101940.0,101930.0,0.400096]
[1737422495773,0.039292,101940.0,101930.0,0.3608]
[1737422497274,0.039296,101930.0,101920.0,0.17585776]
[1737422497466,0.400096,101930.0,101920.0,0.17585776]
[1737422497773,0.039296,101930.0,101920.0,0.17585776]
[1737422498376,0.039296,101930.0,101910.0,0.039303]
[1737422498571,1.900092,101940.0,101910.0,0.039303]
[1737422498875,0.039299,101920.0,101910.0,0.039303]
[1737422499272,0.039299,101920.0,101900.0,0.96570974]
[1737422499470,0.039299,101920.0,101910.0,0.039303]
[1737422501276,0.047139,101920.0,101900.0,1.02130176]
[1737422501771,0.00784,101920.0,101910.0,0.53339056]
[1737422502276,0.14558218,101930.0,101920.0,0.039298]
[1737422502479,0.14558218,101930.0,101920.0,0.400098]
[1737422502670,0.14558218,101930.0,101920.0,0.039298]
[1737422502871,0.18487818,101930.0,101910.0,0.53339056]
[1737422503077,0.039299,101920.0,101910.0,0.3608]
[1737422503768,0.039299,101920.0,101900.0,0.61096799]
[1737422503974,0.039299,101920.0,101910.0,0.3608]
[1737422504275,0.18487818,101930.0,101910.0,0.53338956]
[1737422504475,0.039299,101920.0,101910.0,0.3608]
[1737422505866,0.039303,101910.0,101900.0,0.3608]
[1737422506168,0.039307,101900.0,101890.0,0.23499701]
[1737422506368,0.400107,101900.0,101890.0,0.23447701]
[1737422506572,0.83339456,101900.0,101880.0,0.56450217]
[1737422506873,0.039319,101870.0,101860.0,0.68885306]
[1737422507270,0.039315,101880.0,101860.0,0.72817606]
[1737422507676,7.371e-05,101870.0,101860.0,0.4759202]
[1737422507879,7.371e-05,101870.0,101860.0,0.1151202]
[1737422508184,7.371e-05,101870.0,101860.0,0.4759202]
[1737422508479,7.371e-05,101870.0,101860.0,0.400123]
[1737422509083,7.371e-05,101870.0,101860.0,0.4759202]
[1737422509579,0.2176,101890.0,101860.0,0.4759202]
[1737422509580,0.00147289,101900.0,101860.0,0.57408934]
[1737422509782,0.04078089,101900.0,101890.0,0.3608]
[1737422510775,0.04083911,101900.0,101890.0,0.3608]
[1737422511178,0.00153111,101900.0,101890.0,0.3608]
[1737422511372,0.00153111,101900.0,101890.0,0.400111]
[1737422511776,0.00153111,101900.0,101890.0,0.4759082]
[1737422512275,0.41657769,101930.0,101910.0,0.039302]
[1737422512474,0.0393,101920.0,101910.0,0.3608]
[1737422512673,0.0393,101920.0,101900.0,0.400107]
[1737422513175,0.0393,101920.0,101900.0,0.039307]
[1737422513373,0.17476545,101900.0,101890.0,0.40011]
[1737422513782,0.21407245,101900.0,101890.0,0.3608]
[1737422514276,0.21407245,101900.0,101880.0,0.36227218]
[1737422514482,0.400111,101890.0,101880.0,0.00147218]
[1737422514686,0.4365972,101890.0,101860.0,0.57641194]
[1737422514869,0.039319,101870.0,101860.0,0.53708894]
[1737422515381,0.039319,101870.0,101860.0,0.65220914]
[1737422515579,0.3608,101880.0,101860.0,0.65220914]
[1737422515782,0.039315,101880.0,101870.0,0.400119]
[1737422515976,0.039315,101880.0,101870.0,0.3608]
[1737422516376,0.039315,101880.0,101860.0,0.21561094]
[1737422516780,0.039315,101880.0,101870.0,0.039319]
[1737422516984,0.039315,101880.0,101870.0,0.400119]
[1737422517779,0.15574006,101880.0,101870.0,0.400119]
[1737422518782,0.15574006,101880.0,101870.0,0.039319]
[1737422519093,0.15574006,101880.0,101870.0,0.400119]
[1737422519987,0.11642506,101880.0,101870.0,0.400119]
[1737422520184,0.11642506,101880.0,101870.0,0.53366857]
[1737422520487,0.14553132,101890.0,101880.0,0.031465]
[1737422520686,0.17476545,101900.0,101890.0,0.039311]
[1737422520892,0.17476545,101900.0,101890.0,0.53366057]
[1737422521384,0.17476545,101900.0,101880.0,0.5739]
[1737422521585,0.21407245,101900.0,101890.0,0.3608]
[1737422522287,0.17476545,101900.0,101890.0,0.49434957]